Workbook

Sheet SUMIF s COUNTIF s
A1: Date | B1: SalesRep | C1: Sales | D1: Product | F1: Function | G1: What it does | H1: Criteria | I1: Do Formula | J1: Formula
A2: 2010-05-21 | B2: Denise | C2: 111 | D2: Bellen | F2: SUMIF | G2: add with 1 criterion/condition | H2: Sunshine | J2: =IF(I2="","",FormulaAsText) -> 
A3: 2010-04-30 | B3: Thongtara | C3: 167 | D3: Bellen | F3: COUNTIF | G3: count with 1 criterion/condition | H3: Janita | J3: =IF(I3="","",FormulaAsText) -> 
A4: 2010-04-19 | B4: Chris | C4: 191 | D4: Sunshine | F4: SUMIFS | G4: add with 1 or more criteria | H4: Bellen | J4: =IF(I4="","",FormulaAsText) -> 
A5: 2010-06-17 | B5: Ewelina | C5: 110 | D5: Carlota | H5: Craig
A6: 2010-07-22 | B6: Janita | C6: 146 | D6: Carlota | F6: COUNTIFS | G6: count with 1 or more criteria | H6: Sarah | J6: =IF(I6="","",FormulaAsText) -> 
A7: 2010-05-16 | B7: Elain | C7: 177 | D7: Sunshine | H7: Sunset
A8: 2010-06-05 | B8: Gianna | C8: 137 | D8: Carlota
A9: 2010-05-13 | B9: Richard | C9: 116 | D9: Bellen | F9: SalesRep/Pro | G9: Bellen | H9: Sunshine | I9: Carlota
A10: 2010-05-14 | B10: Elain | C10: 166 | D10: Sunshine | F10: Denise
A11: 2010-06-12 | B11: Michael | C11: 193 | D11: Bellen | F11: Thongtara
A12: 2010-05-22 | B12: Ewelina | C12: 105 | D12: Sunset | F12: Sykes
A13: 2010-07-19 | B13: Michelle | C13: 189 | D13: Carlota | F13: Ewelina
A14: 2010-05-12 | B14: Jason | C14: 122 | D14: Majestic Beaut | F14: Janita
A15: 2010-06-05 | B15: Craig | C15: 196 | D15: Sunshine | F15: Elain
A16: 2010-05-23 | B16: Sarah | C16: 161 | D16: Sunshine | F16: Gianna
A17: 2010-05-29 | B17: Mansa | C17: 197 | D17: Majestic Beaut | F17: Richard
A18: 2010-07-21 | B18: Michelle | C18: 113 | D18: Sunset | F18: Michael
A19: 2010-06-30 | B19: Shari | C19: 111 | D19: Bellen | F19: Michelle
A20: 2010-04-19 | B20: Richard | C20: 164 | D20: Sunshine | F20: Jason
A21: 2010-06-19 | B21: Christina | C21: 167 | D21: Majestic Beaut | F21: Craig
A22: 2010-07-01 | B22: Denise | C22: 129 | D22: Bellen | F22: Sarah
A23: 2010-04-29 | B23: Richard | C23: 122 | D23: Sunshine | F23: Mansa
A24: 2010-03-27 | B24: Thongtara | C24: 132 | D24: Sunshine | F24: Shari
A25: 2010-04-13 | B25: Michelle | C25: 178 | D25: Carlota | F25: Christina
A26: 2010-07-18 | B26: Michelle | C26: 199 | D26: Bellen | F26: Carol
A27: 2010-05-27 | B27: Shari | C27: 181 | D27: Majestic Beaut | F27: Kaur
A28: 2010-06-15 | B28: Carol | C28: 110 | D28: Carlota | F28: Mitchell
A29: 2010-04-08 | B29: Kaur | C29: 104 | D29: Sunset | F29: Debra
A30: 2010-06-23 | B30: Mitchell | C30: 110 | D30: Sunshine | F30: Manavbir
A31: 2010-06-21 | B31: Debra | C31: 185 | D31: Carlota | F31: Daniel
A32: 2010-05-01 | B32: Manavbir | C32: 183 | D32: Sunset | F32: Yla-Katrina
A33: 2010-07-07 | B33: Chris | C33: 143 | D33: Sunset | F33: Nelia
A34: 2010-07-12 | B34: Elain | C34: 120 | D34: Carlota
A35: 2010-06-22 | B35: Michelle | C35: 147 | D35: Sunshine
A36: 2010-05-15 | B36: Jason | C36: 117 | D36: Sunshine
A37: 2010-03-31 | B37: Mansa | C37: 128 | D37: Bellen
A38: 2010-04-16 | B38: Shari | C38: 110 | D38: Sunshine
A39: 2010-05-23 | B39: Kaur | C39: 158 | D39: Carlota
A40: 2010-04-09 | B40: Manavbir | C40: 133 | D40: Sunset
A41: 2010-05-17 | B41: Debra | C41: 190 | D41: Majestic Beaut
A42: 2010-07-13 | B42: Sarah | C42: 138 | D42: Sunshine
A43: 2010-04-01 | B43: Daniel | C43: 143 | D43: Sunset
A44: 2010-04-12 | B44: Manavbir | C44: 167 | D44: Carlota
A45: 2010-04-02 | B45: Thongtara | C45: 135 | D45: Carlota
A46: 2010-05-22 | B46: Carol | C46: 125 | D46: Sunshine
A47: 2010-07-08 | B47: Janita | C47: 107 | D47: Carlota
A48: 2010-06-10 | B48: Carol | C48: 162 | D48: Bellen
A49: 2010-07-13 | B49: Thongtara | C49: 192 | D49: Majestic Beaut
A50: 2010-06-05 | B50: Daniel | C50: 152 | D50: Carlota
A51: 2010-04-28 | B51: Gianna | C51: 155 | D51: Majestic Beaut
A52: 2010-07-08 | B52: Kaur | C52: 155 | D52: Sunshine
A53: 2010-05-06 | B53: Mansa | C53: 145 | D53: Sunshine
A54: 2010-07-10 | B54: Janita | C54: 149 | D54: Carlota
A55: 2010-06-24 | B55: Kaur | C55: 180 | D55: Sunset
A56: 2010-05-07 | B56: Yla-Katrina | C56: 190 | D56: Bellen
A57: 2010-07-01 | B57: Richard | C57: 127 | D57: Sunset
A58: 2010-03-30 | B58: Christina | C58: 114 | D58: Carlota
A59: 2010-04-18 | B59: Carol | C59: 191 | D59: Majestic Beaut
A60: 2010-07-02 | B60: Chris | C60: 197 | D60: Sunshine
A61: 2010-05-09 | B61: Chris | C61: 186 | D61: Bellen
A62: 2010-06-10 | B62: Gianna | C62: 174 | D62: Carlota
A63: 2010-05-29 | B63: Yla-Katrina | C63: 114 | D63: Carlota
A64: 2010-07-05 | B64: Jason | C64: 121 | D64: Bellen
A65: 2010-03-28 | B65: Debra | C65: 134 | D65: Sunshine
A66: 2010-06-15 | B66: Carol | C66: 174 | D66: Carlota
A67: 2010-05-06 | B67: Craig | C67: 178 | D67: Majestic Beaut
A68: 2010-06-01 | B68: Ewelina | C68: 132 | D68: Sunshine
A69: 2010-06-02 | B69: Sarah | C69: 148 | D69: Carlota
A70: 2010-04-05 | B70: Michelle | C70: 120 | D70: Sunset
A71: 2010-06-01 | B71: Thongtara | C71: 199 | D71: Sunshine
A72: 2010-03-31 | B72: Michelle | C72: 109 | D72: Majestic Beaut
A73: 2010-06-27 | B73: Gianna | C73: 138 | D73: Carlota
A74: 2010-05-27 | B74: Thongtara | C74: 153 | D74: Bellen
A75: 2010-06-19 | B75: Janita | C75: 122 | D75: Bellen
A76: 2010-07-21 | B76: Michael | C76: 154 | D76: Bellen
A77: 2010-06-19 | B77: Jason | C77: 174 | D77: Sunset
A78: 2010-07-14 | B78: Denise | C78: 181 | D78: Bellen
A79: 2010-06-25 | B79: Sarah | C79: 113 | D79: Bellen
A80: 2010-04-01 | B80: Nelia | C80: 177 | D80: Sunset
A81: 2010-07-12 | B81: Mitchell | C81: 138 | D81: Majestic Beaut
A82: 2010-05-21 | B82: Denise | C82: 175 | D82: Bellen
A83: 2010-04-16 | B83: Ewelina | C83: 149 | D83: Majestic Beaut
A84: 2010-05-11 | B84: Shari | C84: 140 | D84: Majestic Beaut
A85: 2010-05-03 | B85: Michelle | C85: 152 | D85: Carlota
A86: 2010-04-20 | B86: Jason | C86: 104 | D86: Bellen
A87: 2010-06-07 | B87: Daniel | C87: 116 | D87: Majestic Beaut
A88: 2010-05-06 | B88: Chris | C88: 131 | D88: Carlota
A89: 2010-04-07 | B89: Thongtara | C89: 135 | D89: Sunshine
A90: 2010-06-04 | B90: Michelle | C90: 164 | D90: Sunset
A91: 2010-03-27 | B91: Manavbir | C91: 178 | D91: Sunset
A92: 2010-04-08 | B92: Debra | C92: 139 | D92: Sunshine
A93: 2010-05-04 | B93: Carol | C93: 160 | D93: Carlota
A94: 2010-07-07 | B94: Ewelina | C94: 162 | D94: Bellen
A95: 2010-06-19 | B95: Shari | C95: 103 | D95: Sunshine
A96: 2010-05-09 | B96: Kaur | C96: 200 | D96: Carlota
A97: 2010-04-21 | B97: Mansa | C97: 132 | D97: Sunset
A98: 2010-04-12 | B98: Sarah | C98: 133 | D98: Sunshine
A99: 2010-06-23 | B99: Mansa | C99: 187 | D99: Majestic Beaut
A100: 2010-07-22 | B100: Michael | C100: 173 | D100: Majestic Beaut
A101: 2010-06-07 | B101: Chris | C101: 112 | D101: Sunshine
A102: 2010-04-22 | B102: Daniel | C102: 132 | D102: Bellen
A103: 2010-04-27 | B103: Chris | C103: 112 | D103: Sunset
A104: 2010-04-23 | B104: Daniel | C104: 131 | D104: Carlota
A105: 2010-05-25 | B105: Craig | C105: 175 | D105: Sunshine
A106: 2010-07-19 | B106: Craig | C106: 158 | D106: Sunshine
A107: 2010-04-26 | B107: Ewelina | C107: 148 | D107: Bellen
A108: 2010-06-09 | B108: Daniel | C108: 187 | D108: Sunset
A109: 2010-07-07 | B109: Mansa | C109: 168 | D109: Majestic Beaut
A110: 2010-04-25 | B110: Nelia | C110: 116 | D110: Majestic Beaut
A111: 2010-03-26 | B111: Jason | C111: 122 | D111: Carlota
A112: 2010-05-21 | B112: Debra | C112: 160 | D112: Sunshine
A113: 2010-05-13 | B113: Debra | C113: 192 | D113: Carlota
A114: 2010-05-19 | B114: Christina | C114: 154 | D114: Sunset
A115: 2010-04-06 | B115: Jason | C115: 145 | D115: Sunshine
A116: 2010-05-03 | B116: Richard | C116: 178 | D116: Sunshine
A117: 2010-05-04 | B117: Sarah | C117: 112 | D117: Sunset
A118: 2010-07-04 | B118: Elain | C118: 115 | D118: Carlota
A119: 2010-05-25 | B119: Mansa | C119: 146 | D119: Carlota
A120: 2010-06-15 | B120: Debra | C120: 109 | D120: Majestic Beaut
A121: 2010-07-21 | B121: Denise | C121: 172 | D121: Carlota
A122: 2010-05-22 | B122: Daniel | C122: 146 | D122: Sunshine
A123: 2010-06-30 | B123: Richard | C123: 144 | D123: Bellen
A124: 2010-06-23 | B124: Mitchell | C124: 146 | D124: Carlota
A125: 2010-04-28 | B125: Kaur | C125: 105 | D125: Sunshine
A126: 2010-06-25 | B126: Ewelina | C126: 134 | D126: Carlota
A127: 2010-07-11 | B127: Richard | C127: 118 | D127: Carlota
A128: 2010-07-10 | B128: Debra | C128: 132 | D128: Bellen
A129: 2010-05-27 | B129: Carol | C129: 117 | D129: Sunset
A130: 2010-04-03 | B130: Michelle | C130: 194 | D130: Carlota
A131: 2010-04-27 | B131: Debra | C131: 122 | D131: Sunshine
A132: 2010-06-29 | B132: Michelle | C132: 134 | D132: Sunset
A133: 2010-07-11 | B133: Chris | C133: 134 | D133: Sunshine
A134: 2010-03-30 | B134: Elain | C134: 125 | D134: Sunset
A135: 2010-04-05 | B135: Carol | C135: 115 | D135: Majestic Beaut
A136: 2010-04-04 | B136: Christina | C136: 105 | D136: Sunset
A137: 2010-06-24 | B137: Christina | C137: 179 | D137: Bellen
A138: 2010-06-22 | B138: Elain | C138: 114 | D138: Sunset
A139: 2010-06-06 | B139: Elain | C139: 176 | D139: Carlota
A140: 2010-04-25 | B140: Shari | C140: 194 | D140: Sunset
A141: 2010-05-18 | B141: Mitchell | C141: 170 | D141: Majestic Beaut
A142: 2010-07-14 | B142: Ewelina | C142: 144 | D142: Carlota
A143: 2010-05-06 | B143: Christina | C143: 175 | D143: Carlota
A144: 2010-07-22 | B144: Michelle | C144: 185 | D144: Sunshine
A145: 2010-07-02 | B145: Carol | C145: 133 | D145: Majestic Beaut
A146: 2010-05-21 | B146: Sarah | C146: 131 | D146: Sunset
A147: 2010-06-15 | B147: Mansa | C147: 163 | D147: Sunshine
A148: 2010-03-26 | B148: Denise | C148: 120 | D148: Sunshine
A149: 2010-05-04 | B149: Manavbir | C149: 136 | D149: Majestic Beaut
A150: 2010-03-28 | B150: Gianna | C150: 195 | D150: Sunset
A151: 2010-04-21 | B151: Yla-Katrina | C151: 157 | D151: Sunset
A152: 2010-05-27 | B152: Michelle | C152: 187 | D152: Majestic Beaut
A153: 2010-05-15 | B153: Christina | C153: 185 | D153: Carlota
A154: 2010-07-10 | B154: Jason | C154: 154 | D154: Sunset
A155: 2010-06-13 | B155: Jason | C155: 187 | D155: Sunshine
A156: 2010-07-14 | B156: Gianna | C156: 142 | D156: Sunshine
A157: 2010-07-19 | B157: Denise | C157: 132 | D157: Majestic Beaut
A158: 2010-07-11 | B158: Mitchell | C158: 127 | D158: Sunset
A159: 2010-05-27 | B159: Mansa | C159: 184 | D159: Majestic Beaut
A160: 2010-06-23 | B160: Thongtara | C160: 164 | D160: Bellen
A161: 2010-04-28 | B161: Chris | C161: 157 | D161: Sunset
A162: 2010-07-05 | B162: Craig | C162: 186 | D162: Majestic Beaut
A163: 2010-05-23 | B163: Elain | C163: 135 | D163: Carlota
A164: 2010-06-25 | B164: Janita | C164: 194 | D164: Carlota
A165: 2010-04-05 | B165: Thongtara | C165: 177 | D165: Sunset
A166: 2010-05-05 | B166: Mitchell | C166: 143 | D166: Carlota
A167: 2010-05-18 | B167: Manavbir | C167: 152 | D167: Sunset
A168: 2010-06-03 | B168: Nelia | C168: 101 | D168: Sunset
A169: 2010-05-05 | B169: Janita | C169: 110 | D169: Majestic Beaut
A170: 2010-06-15 | B170: Denise | C170: 124 | D170: Carlota
A171: 2010-05-08 | B171: Christina | C171: 102 | D171: Sunshine
A172: 2010-07-16 | B172: Richard | C172: 139 | D172: Sunset
A173: 2010-05-06 | B173: Janita | C173: 152 | D173: Bellen
A174: 2010-05-17 | B174: Janita | C174: 168 | D174: Majestic Beaut
A175: 2010-04-01 | B175: Michael | C175: 151 | D175: Majestic Beaut
A176: 2010-05-06 | B176: Gianna | C176: 137 | D176: Sunshine
A177: 2010-07-13 | B177: Janita | C177: 104 | D177: Carlota
A178: 2010-04-09 | B178: Nelia | C178: 139 | D178: Carlota
A179: 2010-07-04 | B179: Daniel | C179: 147 | D179: Sunshine
A180: 2010-07-09 | B180: Mansa | C180: 190 | D180: Majestic Beaut
A181: 2010-07-19 | B181: Nelia | C181: 159 | D181: Carlota
A182: 2010-03-28 | B182: Manavbir | C182: 112 | D182: Carlota
A183: 2010-05-08 | B183: Christina | C183: 182 | D183: Majestic Beaut
A184: 2010-05-16 | B184: Richard | C184: 121 | D184: Sunset
A185: 2010-05-25 | B185: Kaur | C185: 181 | D185: Majestic Beaut
A186: 2010-06-03 | B186: Craig | C186: 104 | D186: Bellen
A187: 2010-06-01 | B187: Chris | C187: 194 | D187: Sunset
A188: 2010-03-29 | B188: Christina | C188: 178 | D188: Sunshine
A189: 2010-06-27 | B189: Carol | C189: 142 | D189: Sunshine
A190: 2010-04-09 | B190: Mitchell | C190: 191 | D190: Bellen
A191: 2010-06-26 | B191: Sarah | C191: 120 | D191: Bellen
A192: 2010-05-10 | B192: Carol | C192: 155 | D192: Sunshine
A193: 2010-05-03 | B193: Manavbir | C193: 199 | D193: Sunshine
A194: 2010-05-12 | B194: Thongtara | C194: 106 | D194: Sunshine
A195: 2010-04-28 | B195: Elain | C195: 149 | D195: Majestic Beaut
A196: 2010-06-09 | B196: Michelle | C196: 158 | D196: Bellen
A197: 2010-04-01 | B197: Gianna | C197: 144 | D197: Bellen
A198: 2010-05-13 | B198: Daniel | C198: 143 | D198: Bellen
A199: 2010-07-09 | B199: Daniel | C199: 177 | D199: Sunshine
A200: 2010-04-03 | B200: Manavbir | C200: 142 | D200: Majestic Beaut
... 568 more rows

Sheet SUMIF s COUNTIF s (an) (hidden)
A1: Date | B1: SalesRep | C1: Sales | D1: Product (boomerangs) | F1: Function | G1: What it does | H1: Criteria | I1: Do Formula | J1: Formula
A2: 2010-05-21 | B2: Denise | C2: 111 | D2: Bellen | F2: SUMIF | G2: add with 1 criterion/condition | H2: Sunshine | I2: =SUMIF(D2:D768,$H$2,C2:C768) -> 25327 | J2: =IF(I2="","",FormulaAsText) -> =SUMIF(D2:D768,$H$2,C2:C768)
A3: 2010-04-30 | B3: Thongtara | C3: 167 | D3: Bellen | F3: COUNTIF | G3: count with 1 criterion/condition | H3: Janita | I3: =COUNTIF(B2:B768,H3) -> 0 | J3: =IF(I3="","",FormulaAsText) -> =COUNTIF(B2:B768,H3)
A4: 2010-04-19 | B4: Chris | C4: 191 | D4: Sunshine | F4: SUMIFS | G4: add with 1 or more criteria | H4: Bellen | I4: =SUMIFS(C2:C768,D2:D768,H4,B2:B768,H5) -> 351 | J4: =IF(I4="","",FormulaAsText) -> =SUMIFS(C2:C768,D2:D768,H4,B2:B768,H5)
A5: 2010-06-17 | B5: Ewelina | C5: 110 | D5: Carlota | H5: Craig
A6: 2010-07-22 | B6: Janita | C6: 146 | D6: Carlota | F6: COUNTIFS | G6: count with 1 or more criteria | H6: Sarah | I6: =COUNTIFS(B2:B768,H6,$D2:$D768,H7) -> 3 | J6: =IF(I6="","",FormulaAsText) -> =COUNTIFS(B2:B768,H6,$D2:$D768,H7)
A7: 2010-05-16 | B7: Elain | C7: 177 | D7: Sunshine | H7: Sunset
A8: 2010-06-05 | B8: Gianna | C8: 137 | D8: Carlota
A9: 2010-05-13 | B9: Richard | C9: 116 | D9: Bellen | F9: SalesRep/Pro | G9: Bellen | H9: Sunshine | I9: Carlota
A10: 2010-05-14 | B10: Elain | C10: 166 | D10: Sunshine | F10: Denise | G10: =SUMIFS($C$2:$C$768,$B$2:$B$768,$F10,$D$2:$D$768,G$9) -> 1285 | H10: 1648 | I10: 709
A11: 2010-06-12 | B11: Michael | C11: 193 | D11: Bellen | F11: Thongtara | G11: 1183 | H11: 1278 | I11: 1590
A12: 2010-05-22 | B12: Ewelina | C12: 105 | D12: Sunset | F12: Sykes | G12: 0 | H12: 0 | I12: 0
A13: 2010-07-19 | B13: Michelle | C13: 189 | D13: Carlota | F13: Ewelina | G13: 1264 | H13: 946 | I13: 1616
A14: 2010-05-12 | B14: Jason | C14: 122 | D14: Majestic Beaut | F14: Janita | G14: 689 | H14: 453 | I14: 1288
A15: 2010-06-05 | B15: Craig | C15: 196 | D15: Sunshine | F15: Elain | G15: 789 | H15: 1221 | I15: 1758
A16: 2010-05-23 | B16: Sarah | C16: 161 | D16: Sunshine | F16: Gianna | G16: 433 | H16: 764 | I16: 812
A17: 2010-05-29 | B17: Mansa | C17: 197 | D17: Majestic Beaut | F17: Richard | G17: 706 | H17: 910 | I17: 655
A18: 2010-07-21 | B18: Michelle | C18: 113 | D18: Sunset | F18: Michael | G18: 1469 | H18: 1650 | I18: 798
A19: 2010-06-30 | B19: Shari | C19: 111 | D19: Bellen | F19: Michelle | G19: 867 | H19: 1085 | I19: 1424
A20: 2010-04-19 | B20: Richard | C20: 164 | D20: Sunshine | F20: Jason | G20: 1293 | H20: 1544 | I20: 935
A21: 2010-06-19 | B21: Christina | C21: 167 | D21: Majestic Beaut | F21: Craig | G21: 351 | H21: 1572 | I21: 1218
A22: 2010-07-01 | B22: Denise | C22: 129 | D22: Bellen | F22: Sarah | G22: 851 | H22: 846 | I22: 1180
A23: 2010-04-29 | B23: Richard | C23: 122 | D23: Sunshine | F23: Mansa | G23: 475 | H23: 886 | I23: 459
A24: 2010-03-27 | B24: Thongtara | C24: 132 | D24: Sunshine | F24: Shari | G24: 359 | H24: 1027 | I24: 905
A25: 2010-04-13 | B25: Michelle | C25: 178 | D25: Carlota | F25: Christina | G25: 1187 | H25: 1050 | I25: 1253
A26: 2010-07-18 | B26: Michelle | C26: 199 | D26: Bellen | F26: Carol | G26: 636 | H26: 1125 | I26: 977
A27: 2010-05-27 | B27: Shari | C27: 181 | D27: Majestic Beaut | F27: Kaur | G27: 967 | H27: 412 | I27: 1135
A28: 2010-06-15 | B28: Carol | C28: 110 | D28: Carlota | F28: Mitchell | G28: 700 | H28: 547 | I28: 1003
A29: 2010-04-08 | B29: Kaur | C29: 104 | D29: Sunset | F29: Debra | G29: 583 | H29: 1459 | I29: 1010
A30: 2010-06-23 | B30: Mitchell | C30: 110 | D30: Sunshine | F30: Manavbir | G30: 856 | H30: 1317 | I30: 1356
A31: 2010-06-21 | B31: Debra | C31: 185 | D31: Carlota | F31: Daniel | G31: 1039 | H31: 969 | I31: 1623
A32: 2010-05-01 | B32: Manavbir | C32: 183 | D32: Sunset | F32: Yla-Katrina | G32: 947 | H32: 721 | I32: 1062
A33: 2010-07-07 | B33: Chris | C33: 143 | D33: Sunset | F33: Nelia | G33: 712 | H33: 532 | I33: 908
A34: 2010-07-12 | B34: Elain | C34: 120 | D34: Carlota
A35: 2010-06-22 | B35: Michelle | C35: 147 | D35: Sunshine
A36: 2010-05-15 | B36: Jason | C36: 117 | D36: Sunshine
A37: 2010-03-31 | B37: Mansa | C37: 128 | D37: Bellen
A38: 2010-04-16 | B38: Shari | C38: 110 | D38: Sunshine
A39: 2010-05-23 | B39: Kaur | C39: 158 | D39: Carlota
A40: 2010-04-09 | B40: Manavbir | C40: 133 | D40: Sunset
A41: 2010-05-17 | B41: Debra | C41: 190 | D41: Majestic Beaut
A42: 2010-07-13 | B42: Sarah | C42: 138 | D42: Sunshine
A43: 2010-04-01 | B43: Daniel | C43: 143 | D43: Sunset
A44: 2010-04-12 | B44: Manavbir | C44: 167 | D44: Carlota
A45: 2010-04-02 | B45: Thongtara | C45: 135 | D45: Carlota
A46: 2010-05-22 | B46: Carol | C46: 125 | D46: Sunshine
A47: 2010-07-08 | B47: Janita | C47: 107 | D47: Carlota
A48: 2010-06-10 | B48: Carol | C48: 162 | D48: Bellen
A49: 2010-07-13 | B49: Thongtara | C49: 192 | D49: Majestic Beaut
A50: 2010-06-05 | B50: Daniel | C50: 152 | D50: Carlota
A51: 2010-04-28 | B51: Gianna | C51: 155 | D51: Majestic Beaut
A52: 2010-07-08 | B52: Kaur | C52: 155 | D52: Sunshine
A53: 2010-05-06 | B53: Mansa | C53: 145 | D53: Sunshine
A54: 2010-07-10 | B54: Janita | C54: 149 | D54: Carlota
A55: 2010-06-24 | B55: Kaur | C55: 180 | D55: Sunset
A56: 2010-05-07 | B56: Yla-Katrina | C56: 190 | D56: Bellen
A57: 2010-07-01 | B57: Richard | C57: 127 | D57: Sunset
A58: 2010-03-30 | B58: Christina | C58: 114 | D58: Carlota
A59: 2010-04-18 | B59: Carol | C59: 191 | D59: Majestic Beaut
A60: 2010-07-02 | B60: Chris | C60: 197 | D60: Sunshine
A61: 2010-05-09 | B61: Chris | C61: 186 | D61: Bellen
A62: 2010-06-10 | B62: Gianna | C62: 174 | D62: Carlota
A63: 2010-05-29 | B63: Yla-Katrina | C63: 114 | D63: Carlota
A64: 2010-07-05 | B64: Jason | C64: 121 | D64: Bellen
A65: 2010-03-28 | B65: Debra | C65: 134 | D65: Sunshine
A66: 2010-06-15 | B66: Carol | C66: 174 | D66: Carlota
A67: 2010-05-06 | B67: Craig | C67: 178 | D67: Majestic Beaut
A68: 2010-06-01 | B68: Ewelina | C68: 132 | D68: Sunshine
A69: 2010-06-02 | B69: Sarah | C69: 148 | D69: Carlota
A70: 2010-04-05 | B70: Michelle | C70: 120 | D70: Sunset
A71: 2010-06-01 | B71: Thongtara | C71: 199 | D71: Sunshine
A72: 2010-03-31 | B72: Michelle | C72: 109 | D72: Majestic Beaut
A73: 2010-06-27 | B73: Gianna | C73: 138 | D73: Carlota
A74: 2010-05-27 | B74: Thongtara | C74: 153 | D74: Bellen
A75: 2010-06-19 | B75: Janita | C75: 122 | D75: Bellen
A76: 2010-07-21 | B76: Michael | C76: 154 | D76: Bellen
A77: 2010-06-19 | B77: Jason | C77: 174 | D77: Sunset
A78: 2010-07-14 | B78: Denise | C78: 181 | D78: Bellen
A79: 2010-06-25 | B79: Sarah | C79: 113 | D79: Bellen
A80: 2010-04-01 | B80: Nelia | C80: 177 | D80: Sunset
A81: 2010-07-12 | B81: Mitchell | C81: 138 | D81: Majestic Beaut
A82: 2010-05-21 | B82: Denise | C82: 175 | D82: Bellen
A83: 2010-04-16 | B83: Ewelina | C83: 149 | D83: Majestic Beaut
A84: 2010-05-11 | B84: Shari | C84: 140 | D84: Majestic Beaut
A85: 2010-05-03 | B85: Michelle | C85: 152 | D85: Carlota
A86: 2010-04-20 | B86: Jason | C86: 104 | D86: Bellen
A87: 2010-06-07 | B87: Daniel | C87: 116 | D87: Majestic Beaut
A88: 2010-05-06 | B88: Chris | C88: 131 | D88: Carlota
A89: 2010-04-07 | B89: Thongtara | C89: 135 | D89: Sunshine
A90: 2010-06-04 | B90: Michelle | C90: 164 | D90: Sunset
A91: 2010-03-27 | B91: Manavbir | C91: 178 | D91: Sunset
A92: 2010-04-08 | B92: Debra | C92: 139 | D92: Sunshine
A93: 2010-05-04 | B93: Carol | C93: 160 | D93: Carlota
A94: 2010-07-07 | B94: Ewelina | C94: 162 | D94: Bellen
A95: 2010-06-19 | B95: Shari | C95: 103 | D95: Sunshine
A96: 2010-05-09 | B96: Kaur | C96: 200 | D96: Carlota
A97: 2010-04-21 | B97: Mansa | C97: 132 | D97: Sunset
A98: 2010-04-12 | B98: Sarah | C98: 133 | D98: Sunshine
A99: 2010-06-23 | B99: Mansa | C99: 187 | D99: Majestic Beaut
A100: 2010-07-22 | B100: Michael | C100: 173 | D100: Majestic Beaut
A101: 2010-06-07 | B101: Chris | C101: 112 | D101: Sunshine
A102: 2010-04-22 | B102: Daniel | C102: 132 | D102: Bellen
A103: 2010-04-27 | B103: Chris | C103: 112 | D103: Sunset
A104: 2010-04-23 | B104: Daniel | C104: 131 | D104: Carlota
A105: 2010-05-25 | B105: Craig | C105: 175 | D105: Sunshine
A106: 2010-07-19 | B106: Craig | C106: 158 | D106: Sunshine
A107: 2010-04-26 | B107: Ewelina | C107: 148 | D107: Bellen
A108: 2010-06-09 | B108: Daniel | C108: 187 | D108: Sunset
A109: 2010-07-07 | B109: Mansa | C109: 168 | D109: Majestic Beaut
A110: 2010-04-25 | B110: Nelia | C110: 116 | D110: Majestic Beaut
A111: 2010-03-26 | B111: Jason | C111: 122 | D111: Carlota
A112: 2010-05-21 | B112: Debra | C112: 160 | D112: Sunshine
A113: 2010-05-13 | B113: Debra | C113: 192 | D113: Carlota
A114: 2010-05-19 | B114: Christina | C114: 154 | D114: Sunset
A115: 2010-04-06 | B115: Jason | C115: 145 | D115: Sunshine
A116: 2010-05-03 | B116: Richard | C116: 178 | D116: Sunshine
A117: 2010-05-04 | B117: Sarah | C117: 112 | D117: Sunset
A118: 2010-07-04 | B118: Elain | C118: 115 | D118: Carlota
A119: 2010-05-25 | B119: Mansa | C119: 146 | D119: Carlota
A120: 2010-06-15 | B120: Debra | C120: 109 | D120: Majestic Beaut
A121: 2010-07-21 | B121: Denise | C121: 172 | D121: Carlota
A122: 2010-05-22 | B122: Daniel | C122: 146 | D122: Sunshine
A123: 2010-06-30 | B123: Richard | C123: 144 | D123: Bellen
A124: 2010-06-23 | B124: Mitchell | C124: 146 | D124: Carlota
A125: 2010-04-28 | B125: Kaur | C125: 105 | D125: Sunshine
A126: 2010-06-25 | B126: Ewelina | C126: 134 | D126: Carlota
A127: 2010-07-11 | B127: Richard | C127: 118 | D127: Carlota
A128: 2010-07-10 | B128: Debra | C128: 132 | D128: Bellen
A129: 2010-05-27 | B129: Carol | C129: 117 | D129: Sunset
A130: 2010-04-03 | B130: Michelle | C130: 194 | D130: Carlota
A131: 2010-04-27 | B131: Debra | C131: 122 | D131: Sunshine
A132: 2010-06-29 | B132: Michelle | C132: 134 | D132: Sunset
A133: 2010-07-11 | B133: Chris | C133: 134 | D133: Sunshine
A134: 2010-03-30 | B134: Elain | C134: 125 | D134: Sunset
A135: 2010-04-05 | B135: Carol | C135: 115 | D135: Majestic Beaut
A136: 2010-04-04 | B136: Christina | C136: 105 | D136: Sunset
A137: 2010-06-24 | B137: Christina | C137: 179 | D137: Bellen
A138: 2010-06-22 | B138: Elain | C138: 114 | D138: Sunset
A139: 2010-06-06 | B139: Elain | C139: 176 | D139: Carlota
A140: 2010-04-25 | B140: Shari | C140: 194 | D140: Sunset
A141: 2010-05-18 | B141: Mitchell | C141: 170 | D141: Majestic Beaut
A142: 2010-07-14 | B142: Ewelina | C142: 144 | D142: Carlota
A143: 2010-05-06 | B143: Christina | C143: 175 | D143: Carlota
A144: 2010-07-22 | B144: Michelle | C144: 185 | D144: Sunshine
A145: 2010-07-02 | B145: Carol | C145: 133 | D145: Majestic Beaut
A146: 2010-05-21 | B146: Sarah | C146: 131 | D146: Sunset
A147: 2010-06-15 | B147: Mansa | C147: 163 | D147: Sunshine
A148: 2010-03-26 | B148: Denise | C148: 120 | D148: Sunshine
A149: 2010-05-04 | B149: Manavbir | C149: 136 | D149: Majestic Beaut
A150: 2010-03-28 | B150: Gianna | C150: 195 | D150: Sunset
A151: 2010-04-21 | B151: Yla-Katrina | C151: 157 | D151: Sunset
A152: 2010-05-27 | B152: Michelle | C152: 187 | D152: Majestic Beaut
A153: 2010-05-15 | B153: Christina | C153: 185 | D153: Carlota
A154: 2010-07-10 | B154: Jason | C154: 154 | D154: Sunset
A155: 2010-06-13 | B155: Jason | C155: 187 | D155: Sunshine
A156: 2010-07-14 | B156: Gianna | C156: 142 | D156: Sunshine
A157: 2010-07-19 | B157: Denise | C157: 132 | D157: Majestic Beaut
A158: 2010-07-11 | B158: Mitchell | C158: 127 | D158: Sunset
A159: 2010-05-27 | B159: Mansa | C159: 184 | D159: Majestic Beaut
A160: 2010-06-23 | B160: Thongtara | C160: 164 | D160: Bellen
A161: 2010-04-28 | B161: Chris | C161: 157 | D161: Sunset
A162: 2010-07-05 | B162: Craig | C162: 186 | D162: Majestic Beaut
A163: 2010-05-23 | B163: Elain | C163: 135 | D163: Carlota
A164: 2010-06-25 | B164: Janita | C164: 194 | D164: Carlota
A165: 2010-04-05 | B165: Thongtara | C165: 177 | D165: Sunset
A166: 2010-05-05 | B166: Mitchell | C166: 143 | D166: Carlota
A167: 2010-05-18 | B167: Manavbir | C167: 152 | D167: Sunset
A168: 2010-06-03 | B168: Nelia | C168: 101 | D168: Sunset
A169: 2010-05-05 | B169: Janita | C169: 110 | D169: Majestic Beaut
A170: 2010-06-15 | B170: Denise | C170: 124 | D170: Carlota
A171: 2010-05-08 | B171: Christina | C171: 102 | D171: Sunshine
A172: 2010-07-16 | B172: Richard | C172: 139 | D172: Sunset
A173: 2010-05-06 | B173: Janita | C173: 152 | D173: Bellen
A174: 2010-05-17 | B174: Janita | C174: 168 | D174: Majestic Beaut
A175: 2010-04-01 | B175: Michael | C175: 151 | D175: Majestic Beaut
A176: 2010-05-06 | B176: Gianna | C176: 137 | D176: Sunshine
A177: 2010-07-13 | B177: Janita | C177: 104 | D177: Carlota
A178: 2010-04-09 | B178: Nelia | C178: 139 | D178: Carlota
A179: 2010-07-04 | B179: Daniel | C179: 147 | D179: Sunshine
A180: 2010-07-09 | B180: Mansa | C180: 190 | D180: Majestic Beaut
A181: 2010-07-19 | B181: Nelia | C181: 159 | D181: Carlota
A182: 2010-03-28 | B182: Manavbir | C182: 112 | D182: Carlota
A183: 2010-05-08 | B183: Christina | C183: 182 | D183: Majestic Beaut
A184: 2010-05-16 | B184: Richard | C184: 121 | D184: Sunset
A185: 2010-05-25 | B185: Kaur | C185: 181 | D185: Majestic Beaut
A186: 2010-06-03 | B186: Craig | C186: 104 | D186: Bellen
A187: 2010-06-01 | B187: Chris | C187: 194 | D187: Sunset
A188: 2010-03-29 | B188: Christina | C188: 178 | D188: Sunshine
A189: 2010-06-27 | B189: Carol | C189: 142 | D189: Sunshine
A190: 2010-04-09 | B190: Mitchell | C190: 191 | D190: Bellen
A191: 2010-06-26 | B191: Sarah | C191: 120 | D191: Bellen
A192: 2010-05-10 | B192: Carol | C192: 155 | D192: Sunshine
A193: 2010-05-03 | B193: Manavbir | C193: 199 | D193: Sunshine
A194: 2010-05-12 | B194: Thongtara | C194: 106 | D194: Sunshine
A195: 2010-04-28 | B195: Elain | C195: 149 | D195: Majestic Beaut
A196: 2010-06-09 | B196: Michelle | C196: 158 | D196: Bellen
A197: 2010-04-01 | B197: Gianna | C197: 144 | D197: Bellen
A198: 2010-05-13 | B198: Daniel | C198: 143 | D198: Bellen
A199: 2010-07-09 | B199: Daniel | C199: 177 | D199: Sunshine
A200: 2010-04-03 | B200: Manavbir | C200: 142 | D200: Majestic Beaut
... 568 more rows

Sheet VLOOKUP
A1: =ROWS(A1:A$22)&")" -> 22) | B1: The VLOOKUP function retrieves an item from a table and returns it to a cell or formula.
A2: =ROWS(A2:A$22)&")" -> 21) | B2: The VLOOKUP: 1) Looks for a value in the leftmost column of a table 2) And then returns a value in the same row from a column you specify 3) By default, the table must be sorted in an ascending order
A3: =ROWS(A3:A$22)&")" -> 20) | B3: The VLOOKUP function has four arguments: 1) lookup_value: This is the items that the VLOOKUP looks at before it goes over to the table and looks it up. Once the VLOOKUP goes over to the table, it looks in the leftmost column to try and fine the value 2) table_array is the table that you are looking a value up in 3) col_index_num is the number of the column that has the value you want to get and return back to the cell (the leftmost column of the table is considered 1). For this argument you can use the COLUMNS or ROWS functions to increment numbers. 4) [range-lookup] is a 0 when you are looking up an exact value (like a word) and 1 or omitted when you are looking up an approximate value (like in tax tables where you want to find the row that is equal to the lookup_value or greater than, but less than the next value in the leftmost column.
A4: =ROWS(A4:A$22)&")" -> 19) | B4: To add Data Validation - List use Data Menu (2003) or Data Ribbon (2007). In the allow text box, select List. In the Source textbox select the range with the values you want.
A6: Aproximate Lookup | F6: Sales | G6: Com. Rate | I6: Key to understanding how aproximate works
A7: Names | B7: Sales | C7: Com. Rate | D7: $ Commission | F7: 0 | G7: 0 | I7: =F7&" >= sales < "&F8 -> 0 >= sales < 200
A8: Jo | B8: 100 | F8: 200 | G8: 0.01 | I8: =F8&" >= sales < "&F9 -> 200 >= sales < 500
A9: Sioux | B9: 200 | F9: 500 | G9: 0.015 | I9: 500 >= sales < 1000
A10: Sue | B10: 2500 | F10: 1000 | G10: 0.02 | I10: 1000 >= sales < 5000
A11: Joe | B11: 6000 | F11: 5000 | G11: 0.05 | I11: ="sales >= "&F11 -> sales >= 5000
A12: Chin | B12: 8740
A13: Ron | B13: 2554
A16: Aproximate Lookup from different Sheet | F16: Sales | G16: Com. Rate | I16: Key to understanding how aproximate works
A17: Names | B17: Sales | C17: Com. Rate | D17: $ Commission | F17: 0 | G17: 0 | I17: =F17&" >= sales < "&F18 -> 0 >= sales < 200
A18: Jo | B18: 100 | F18: 200 | G18: 0.01 | I18: =F18&" >= sales < "&F19 -> 200 >= sales < 500
A19: Sioux | B19: 200 | F19: 500 | G19: 0.015 | I19: 500 >= sales < 1000
A20: Sue | B20: 2500 | F20: 1000 | G20: 0.02 | I20: 1000 >= sales < 5000
A21: Joe | B21: 6000 | F21: 5000 | G21: 0.05 | I21: ="sales >= "&F21 -> sales >= 5000
A22: Chin | B22: 8740
A23: Ron | B23: 2554
A25: Exact Lookup | F25: Product | G25: Description | H25: Price
A26: =F25 -> Product | B26: =G25 -> Description | C26: =H25 -> Price | F26: Bellen | G26: 25 meters | H26: 25
F27: Carlota | G27: 20 meters | H27: 26
F28: Quad | G28: 15 meters | H28: 30
F29: Sunset | G29: 35 meters | H29: 23
B30: Columns
A33: Exact Lookup from different workbook
A34: Product | B34: Description | C34: Price
A38: Data Set 1 | F38: Data Set 2
A39: Date | B39: SalesRep | C39: Sales | D39: Add New Field | F39: Date | G39: SalesRep | H39: Sales | I39: Is This New Record?
A40: 2010-05-21 | B40: Denise | C40: 111 | F40: 2010-05-21 | G40: Denise | H40: 111
A41: 2010-04-30 | B41: Thongtara | C41: 167 | F41: 2010-04-30 | G41: Thongtara | H41: 167
A42: 2010-04-19 | B42: Chris | C42: 191 | F42: 2010-04-19 | G42: Chris | H42: 191
A43: 2010-07-22 | B43: Janita | C43: 146 | F43: 2010-06-17 | G43: Ewelina | H43: 110
A44: 2010-05-16 | B44: Elain | C44: 177 | F44: 2010-07-22 | G44: Janita | H44: 146
A45: 2010-05-13 | B45: Richard | C45: 116 | F45: 2010-05-16 | G45: Elain | H45: 177
A46: 2010-05-14 | B46: Elain | C46: 166 | F46: 2010-06-05 | G46: Gianna | H46: 137
A47: 2010-06-12 | B47: Michael | C47: 193 | F47: 2010-05-13 | G47: Richard | H47: 116
A48: 2010-07-19 | B48: Michelle | C48: 189 | F48: 2010-05-14 | G48: Elain | H48: 166
A49: 2010-05-12 | B49: Jason | C49: 122 | F49: 2010-06-12 | G49: Michael | H49: 193
F50: 2010-05-22 | G50: Ewelina | H50: 105
F51: 2010-07-19 | G51: Michelle | H51: 189
F52: 2010-05-12 | G52: Jason | H52: 122
F53: 2010-06-05 | G53: Craig | H53: 196

Sheet VLOOKUP (an) (hidden)
A1: =ROWS(A1:A$22)&")" -> 22) | B1: The VLOOKUP function retrieves an item from a table and returns it to a cell or formula.
A2: =ROWS(A2:A$22)&")" -> 21) | B2: The VLOOKUP: 1) Looks for a value in the leftmost column of a table 2) And then returns a value in the same row from a column you specify 3) By default, the table must be sorted in an ascending order
A3: =ROWS(A3:A$22)&")" -> 20) | B3: The VLOOKUP function has four arguments: 1) lookup_value: This is the items that the VLOOKUP looks at before it goes over to the table and looks it up. Once the VLOOKUP goes over to the table, it looks in the leftmost column to try and fine the value 2) table_array is the table that you are looking a value up in 3) col_index_num is the number of the column that has the value you want to get and return back to the cell (the leftmost column of the table is considered 1). For this argument you can use the COLUMNS or ROWS functions to increment numbers. 4) [range-lookup] is a 0 when you are looking up an exact value (like a word) and 1 or omitted when you are looking up an approximate value (like in tax tables where you want to find the row that is equal to the lookup_value or greater than, but less than the next value in the leftmost column.
A4: =ROWS(A4:A$22)&")" -> 19) | B4: To add Data Validation - List use Data Menu (2003) or Data Ribbon (2007). In the allow text box, select List. In the Source textbox select the range with the values you want.
A6: Aproximate Lookup | G6: Sales | H6: Com. Rate | J6: Key to understanding how aproximate works
A7: Names | B7: Sales | C7: Com. Rate | D7: $ Commission | G7: 0 | H7: 0 | J7: =G7&" >= sales < "&G8 -> 0 >= sales < 200
A8: Jo | B8: 100 | C8: =VLOOKUP(B8,$G$7:$H$11,2) -> 0 | D8: =C8*B8 -> 0 | G8: 200 | H8: 0.01 | J8: =G8&" >= sales < "&G9 -> 200 >= sales < 500
A9: Sioux | B9: 200 | C9: 0.01 | D9: 2 | G9: 500 | H9: 0.015 | J9: 500 >= sales < 1000
A10: Sue | B10: 2500 | C10: 0.02 | D10: 50 | G10: 1000 | H10: 0.02 | J10: 1000 >= sales < 5000
A11: Joe | B11: 6000 | C11: 0.05 | D11: 300 | G11: 5000 | H11: 0.05 | J11: ="sales >= "&G11 -> sales >= 5000
A12: Chin | B12: 8740 | C12: 0.05 | D12: 437
A13: Ron | B13: 2554 | C13: 0.02 | D13: 51.08
A16: Aproximate Lookup from different Sheet | G16: Sales | H16: Com. Rate
A17: Names | B17: Sales | C17: Com. Rate | D17: $ Commission | G17: 0 | H17: 0
A18: Jo | B18: 100 | C18: =VLOOKUP(B18,Tables!$A$2:$B$6,2) -> 0 | D18: =C18*B18 -> 0 | G18: 200 | H18: 0.01
A19: Sioux | B19: 200 | C19: =VLOOKUP(B19,Tables!$A$2:$B$6,2) -> 0.01 | D19: 2 | G19: 500 | H19: 0.015
A20: Sue | B20: 2500 | C20: =VLOOKUP(B20,Tables!$A$2:$B$6,2) -> 0.02 | D20: 50 | G20: 1000 | H20: 0.02
A21: Joe | B21: 6000 | C21: =VLOOKUP(B21,Tables!$A$2:$B$6,2) -> 0.05 | D21: 300 | G21: 5000 | H21: 0.05
A22: Chin | B22: 8740 | C22: =VLOOKUP(B22,Tables!$A$2:$B$6,2) -> 0.05 | D22: 437
A23: Ron | B23: 2554 | C23: =VLOOKUP(B23,Tables!$A$2:$B$6,2) -> 0.02 | D23: 51.08
A25: Exact Lookup | G25: Product | H25: Description | I25: Price
A26: =G25 -> Product | B26: =H25 -> Description | C26: Price | G26: Bellen | H26: 25 meters | I26: 25
A27: Carlota | B27: =VLOOKUP($A27,$G$26:$I$29,2,0) -> 20 meters | C27: =VLOOKUP($A27,$G$26:$I$29,3,0) -> 26 | G27: Carlota | H27: 20 meters | I27: 26
G28: Quad | H28: 15 meters | I28: 30
G29: Sunset | H29: 35 meters | I29: 23
B30: Columns
B31: =VLOOKUP($A27,$G$26:$I$29,COLUMNS($B31:B31)+1,0) -> 20 meters | C31: =VLOOKUP($A27,$G$26:$I$29,COLUMNS($B31:C31)+1,0) -> 26
A33: Exact Lookup from different workbook
A34: Product | B34: Description | C34: Price
A35: Carlota | B35: =VLOOKUP($A35,$G$26:$I$29,2,0) -> 20 meters | C35: =VLOOKUP($A35,$G$26:$I$29,3,0) -> 26
A38: Data Set 1 | G38: Data Set 2
A39: Date | B39: SalesRep | C39: Sales | D39: Add New Field | G39: Date | H39: SalesRep | I39: Sales | J39: Is This New Record? | L39: Is This New Record?
A40: 2010-05-21 | B40: Denise | C40: 111 | D40: =A40&B40&C40 -> 40319Denise111 | G40: 2010-05-21 | H40: Denise | I40: 111 | J40: =VLOOKUP(G40&H40&I40,$D$40:$D$49,1,0) -> 40319Denise111 | L40: =ISNA(VLOOKUP(G40&H40&I40,$D$40:$D$49,1,0)) -> FALSE
A41: 2010-04-30 | B41: Thongtara | C41: 167 | D41: =A41&B41&C41 -> 40298Thongtara167 | G41: 2010-04-30 | H41: Thongtara | I41: 167 | J41: 40298Thongtara167 | L41: =ISNA(VLOOKUP(G41&H41&I41,$D$40:$D$49,1,0)) -> FALSE
A42: 2010-04-19 | B42: Chris | C42: 191 | D42: 40287Chris191 | G42: 2010-04-19 | H42: Chris | I42: 191 | J42: 40287Chris191 | L42: FALSE
A43: 2010-07-22 | B43: Janita | C43: 146 | D43: 40381Janita146 | G43: 2010-06-17 | H43: Ewelina | I43: 110 | L43: TRUE
A44: 2010-05-16 | B44: Elain | C44: 177 | D44: 40314Elain177 | G44: 2010-07-22 | H44: Janita | I44: 146 | J44: 40381Janita146 | L44: FALSE
A45: 2010-05-13 | B45: Richard | C45: 116 | D45: 40311Richard116 | G45: 2010-05-16 | H45: Elain | I45: 177 | J45: 40314Elain177 | L45: FALSE
A46: 2010-05-14 | B46: Elain | C46: 166 | D46: 40312Elain166 | G46: 2010-06-05 | H46: Gianna | I46: 137 | L46: TRUE
A47: 2010-06-12 | B47: Michael | C47: 193 | D47: 40341Michael193 | G47: 2010-05-13 | H47: Richard | I47: 116 | J47: 40311Richard116 | L47: FALSE
A48: 2010-07-19 | B48: Michelle | C48: 189 | D48: 40378Michelle189 | G48: 2010-05-14 | H48: Elain | I48: 166 | J48: 40312Elain166 | L48: FALSE
A49: 2010-05-12 | B49: Jason | C49: 122 | D49: 40310Jason122 | G49: 2010-06-12 | H49: Michael | I49: 193 | J49: 40341Michael193 | L49: FALSE
G50: 2010-05-22 | H50: Ewelina | I50: 105 | L50: TRUE
G51: 2010-07-19 | H51: Michelle | I51: 189 | J51: 40378Michelle189 | L51: FALSE
G52: 2010-05-12 | H52: Jason | I52: 122 | J52: 40310Jason122 | L52: FALSE
G53: 2010-06-05 | H53: Craig | I53: 196 | L53: TRUE

Sheet Tables
A1: Sales | B1: Com. Rate
A2: 0 | B2: 0
A3: 200 | B3: 0.01
A4: 500 | B4: 0.015
A5: 1000 | B5: 0.02
A6: 5000 | B6: 0.05

Sheet Totals
B1: Pro 1 | C1: Pro 2 | D1: Pro 3 | E1: Pro 4
A2: Week 1
A3: Week 2
A4: Week 3
A5: Week 4

Sheet Totals (an) (hidden)
B1: Pro 1 | C1: Pro 2 | D1: Pro 3 | E1: Pro 4
A2: Week 1 | B2: =SUM('Store(1):Store(4)'!B2) -> 1502 | C2: =SUM('Store(1):Store(4)'!C2) -> 1855 | D2: =SUM('Store(1):Store(4)'!D2) -> 1400 | E2: =SUM('Store(1):Store(4)'!E2) -> 1741
A3: Week 2 | B3: =SUM('Store(1):Store(4)'!B3) -> 2368 | C3: =SUM('Store(1):Store(4)'!C3) -> 2202 | D3: =SUM('Store(1):Store(4)'!D3) -> 2416 | E3: =SUM('Store(1):Store(4)'!E3) -> 2456
A4: Week 3 | B4: =SUM('Store(1):Store(4)'!B4) -> 1166 | C4: =SUM('Store(1):Store(4)'!C4) -> 2244 | D4: =SUM('Store(1):Store(4)'!D4) -> 1418 | E4: =SUM('Store(1):Store(4)'!E4) -> 1346
A5: Week 4 | B5: =SUM('Store(1):Store(4)'!B5) -> 2856 | C5: =SUM('Store(1):Store(4)'!C5) -> 1473 | D5: =SUM('Store(1):Store(4)'!D5) -> 1881 | E5: =SUM('Store(1):Store(4)'!E5) -> 2382

Sheet Store(1)
B1: Pro 1 | C1: Pro 2 | D1: Pro 3 | E1: Pro 4
A2: Week 1 | B2: 253 | C2: 185 | D2: 155 | E2: 468
A3: Week 2 | B3: 540 | C3: 344 | D3: 360 | E3: 688
A4: Week 3 | B4: 185 | C4: 497 | D4: 351 | E4: 464
A5: Week 4 | B5: 703 | C5: 234 | D5: 334 | E5: 382

Sheet Store(2)
B1: Pro 1 | C1: Pro 2 | D1: Pro 3 | E1: Pro 4
A2: Week 1 | B2: 267 | C2: 774 | D2: 126 | E2: 259
A3: Week 2 | B3: 344 | C3: 320 | D3: 634 | E3: 479
A4: Week 3 | B4: 167 | C4: 826 | D4: 804 | E4: 409
A5: Week 4 | B5: 467 | C5: 826 | D5: 722 | E5: 470

Sheet Store(3)
B1: Pro 1 | C1: Pro 2 | D1: Pro 3 | E1: Pro 4
A2: Week 1 | B2: 681 | C2: 483 | D2: 852 | E2: 253
A3: Week 2 | B3: 842 | C3: 857 | D3: 835 | E3: 624
A4: Week 3 | B4: 595 | C4: 394 | D4: 160 | E4: 212
A5: Week 4 | B5: 793 | C5: 251 | D5: 720 | E5: 819

Sheet Store(4)
B1: Pro 1 | C1: Pro 2 | D1: Pro 3 | E1: Pro 4
A2: Week 1 | B2: 301 | C2: 413 | D2: 267 | E2: 761
A3: Week 2 | B3: 642 | C3: 681 | D3: 587 | E3: 665
A4: Week 3 | B4: 219 | C4: 527 | D4: 103 | E4: 261
A5: Week 4 | B5: 893 | C5: 162 | D5: 105 | E5: 711

Sheet Logical IS IF
A1: List of what can go in a cell | D1: Comparative Operator | E1: Comparative Operator
A2: TEXT | B2: rad | D2: = | E2: Equal
A3: NUMBER | B3: 4.23 | D3: <> | E3: Not Equal
A4: TRUE | B4: TRUE | D4: > | E4: Great Than
A5: FALSE | B5: FALSE | D5: >= | E5: Greater Than Or Equal To
A6: Error from formula | B6: =B3/0 ->  | D6: < | E6: Less Than
D7: <= | E7: Less Than Or Equal To
A9: Logical Formulas (Logical Tests) evaluate to TRUE or FALSE
A10: Sales | B10: Hurdle To Get Bonus | C10: Did You Get it?
A11: 500 | B11: 500 | D11: >
A12: 500 | B12: 500 | D12: >=
A14: Credit Analysis where all tests must be true (AND) | F14: Assumptions
A15: Customer | B15: Sales Last Year | C15: Asset Value | D15: AND = all logical tests = TRUE | F15: Sales Last Year | G15: Asset Value
A16: Your Name | B16: 690000 | C16: 900000 | F16: 500000 | G16: 1000000
A18: Credit Analysis where 1 or more (at least) 1 tests must be true (OR) | F18: Assumptions
A19: Customer | B19: Sales Last Year | C19: Asset Value | D19: OR = Only 1 test must be true = TRUE | F19: Sales Last Year | G19: Asset Value
A20: Your Name | B20: 690000 | C20: 900000 | F20: 500000 | G20: 1000000
A23: IF function can put one of two things in a cell. The IF function has three parts: 1) Logical Test 2) Value If True 3) Value If False. For the 'Value If True' and 'Value If False', you can put numbers, text (must be in doulbe quotes), formulas, or cell ranges
A25: Sales | B25: Hurdle To Get Bonus | C25: Did You Get it?
A26: 500 | B26: 500 | D26: >
A27: 500 | B27: 500 | D27: >=
A29: Date | B29: Cash In | C29: Cash Out | D29: Balance
A30: Bal For | D30: 5000
A31: 2010-04-03 | B31: 500
A32: 2010-04-04 | C32: 620
A33: 2010-04-05 | C33: 1000
A39: ISTEXT function | B39: rad | C39: =ISTEXT(B39) -> TRUE | D39: =ISTEXT(B39) -> TRUE | E39: Value refers to text.
A40: ISTEXT function | B40: 23 | C40: =ISTEXT(B40) -> FALSE | D40: =ISTEXT(B40) -> FALSE
A41: ISNUMBER function | B41: 12 | C41: =ISNUMBER(B41) -> TRUE | D41: =ISNUMBER(B41) -> TRUE | E41: Value refers to a number.
A42: ISNUMBER function | B42: Rad | C42: =ISNUMBER(B42) -> FALSE | D42: =ISNUMBER(B42) -> FALSE
A43: ISLOGICAL function | B43: TRUE | C43: =ISLOGICAL(B43) -> TRUE | D43: =ISLOGICAL(B43) -> TRUE | E43: Value refers to a logical value.
A44: ISBLANK function | C44: =ISBLANK(B44) -> TRUE | D44: =ISBLANK(B44) -> TRUE | E44: Value refers to an empty cell.
A45: ISERROR function | B45: =#REF! ->  | C45: =ISERROR(B45) -> TRUE | D45: =ISERROR(B45) -> TRUE | E45: Value refers to any error value (#N/A, #VALUE!, #REF!, #DIV/0!, #NUM!, #NAME?, or #NULL!).
A46: ISERR function | C46: =ISERR(B46) -> FALSE | D46: =ISERR(B46) -> FALSE | E46: Value refers to any error value except #N/A.
A47: ISNA function | C47: =ISNA(B47) -> TRUE | D47: =ISNA(B47) -> TRUE | E47: Value refers to the #N/A (value not available) error value.
A48: ISNONTEXT function | B48: Excel | C48: =ISNONTEXT(B48) -> FALSE | D48: =ISNONTEXT(B48) -> FALSE | E48: Value refers to any item that is not text. (Note that this function returns TRUE if value refers to a blank cell.)
A50: Go Back and Fix VLOOKUP function with ISNA function

Sheet Logical IS IF (an) (hidden)
A1: List of what can go in a cell | D1: Comparative Operator | E1: Comparative Operator
A2: TEXT | B2: rad | D2: = | E2: Equal
A3: NUMBER | B3: 4.23 | D3: <> | E3: Not Equal
A4: TRUE | B4: TRUE | D4: > | E4: Great Than
A5: FALSE | B5: FALSE | D5: >= | E5: Greater Than Or Equal To
A6: Error from formula | B6: =B3/0 ->  | D6: < | E6: Less Than
D7: <= | E7: Less Than Or Equal To
A9: Logical Formulas (Logical Tests) evaluate to TRUE or FALSE
A10: Sales | B10: Hurdle To Get Bonus | C10: Did You Get it?
A11: 500 | B11: 500 | C11: =A11>B11 -> FALSE | D11: >
A12: 500 | B12: 500 | C12: =A12>=B12 -> TRUE | D12: >=
A14: Credit Analysis where all tests must be true (AND) | F14: Assumptions
A15: Customer | B15: Sales Last Year | C15: Asset Value | D15: AND = all logical tests = TRUE | F15: Sales Last Year | G15: Asset Value
A16: Your Name | B16: 690000 | C16: 900000 | D16: =AND(B16>=F16,C16>=G16) -> FALSE | F16: 500000 | G16: 1000000
A18: Credit Analysis where 1 or more (at least) 1 tests must be true (OR) | F18: Assumptions
A19: Customer | B19: Sales Last Year | C19: Asset Value | D19: OR = Only 1 test must be true = TRUE | F19: Sales Last Year | G19: Asset Value
A20: Your Name | B20: 690000 | C20: 900000 | D20: =OR(B20>=F20,C20>=G20) -> TRUE | F20: 500000 | G20: 1000000
A23: IF function can put one of two things in a cell. The IF function has three parts: 1) Logical Test 2) Value If True 3) Value If False. For the 'Value If True' and 'Value If False', you can put numbers, text (must be in doulbe quotes), formulas, or cell ranges
A25: Sales | B25: Hurdle To Get Bonus | C25: Did You Get it?
A26: 500 | B26: 500 | C26: =IF(A26>B26,"Get Bonus","No Bonus") -> No Bonus | D26: >
A27: 500 | B27: 500 | C27: =IF(A27>=B27,"Get Bonus","No Bonus") -> Get Bonus | D27: >=
A29: Date | B29: Cash In | C29: Cash Out | D29: Balance
A30: Bal For | D30: 5000
A31: 2010-04-03 | B31: 500 | D31: =IF(A31="","",B31-C31+D30) -> 5500
A32: 2010-04-04 | C32: 620 | D32: 4880
A33: 2010-04-05 | C33: 1000 | D33: 3880
A39: ISTEXT function | B39: rad | C39: =ISTEXT(B39) -> TRUE | D39: =ISTEXT(B39) -> TRUE | E39: Value refers to text.
A40: ISTEXT function | B40: 23 | C40: =ISTEXT(B40) -> FALSE | D40: =ISTEXT(B40) -> FALSE
A41: ISNUMBER function | B41: 12 | C41: =ISNUMBER(B41) -> TRUE | D41: =ISNUMBER(B41) -> TRUE | E41: Value refers to a number.
A42: ISNUMBER function | B42: Rad | C42: =ISNUMBER(B42) -> FALSE | D42: =ISNUMBER(B42) -> FALSE
A43: ISLOGICAL function | B43: TRUE | C43: =ISLOGICAL(B43) -> TRUE | D43: =ISLOGICAL(B43) -> TRUE | E43: Value refers to a logical value.
A44: ISBLANK function | C44: =ISBLANK(B44) -> TRUE | D44: =ISBLANK(B44) -> TRUE | E44: Value refers to an empty cell.
A45: ISERROR function | B45: =#REF! ->  | C45: =ISERROR(B45) -> TRUE | D45: =ISERROR(B45) -> TRUE | E45: Value refers to any error value (#N/A, #VALUE!, #REF!, #DIV/0!, #NUM!, #NAME?, or #NULL!).
A46: ISERR function | C46: =ISERR(B46) -> FALSE | D46: =ISERR(B46) -> FALSE | E46: Value refers to any error value except #N/A.
A47: ISNA function | C47: =ISNA(B47) -> TRUE | D47: =ISNA(B47) -> TRUE | E47: Value refers to the #N/A (value not available) error value.
A48: ISNONTEXT function | B48: Excel | C48: =ISNONTEXT(B48) -> FALSE | D48: =ISNONTEXT(B48) -> FALSE | E48: Value refers to any item that is not text. (Note that this function returns TRUE if value refers to a blank cell.)
A50: Go Back and Fix VLOOKUP function with ISNA function

Sheet Dates
A1: Hire Date | B1: 2010-04-02
A2: Years Until Vest | B2: 3
A3: Vest Date | D3: EDATE
A5: Reporting Period | B5: 2010-04-01
A6: End of Month | D6: EOMONTH

Sheet Text Functions
B2: removes all spaces except 1 between each word | C2: Cap for each 1st letter | D2: finds the position of "sub-text" with in text. Example =SEARCH("e","len") = 2 -- because e is 2nd letter | E2: takes a certain # of characters form the left | F2: Replaces text when you tell it position to start at and how far to go.
A3: Names | B3: TRIM | C3: PROPER | D3: SEARCH | E3: LEFT | F3: REPLACE
A4: ELAIN JANIS
A5: GRAF CAROL
A6: LINDSEY GIANNA
A7: MIKLOVICH JASON
A8: MILLER MICHELLE
A9: SHOMIN SHARI
A10: SNYDER DENISE
A11: BELL DANIEL
A12: BURCKHARD SARAH
A13: CARLSON CHRISTINA
A14: DIXON JANITA
A15: EADS DEBRA
A16: GAYLON NELIA
A17: GILL MANAVBIR
A18: HERR RICHARD
A19: JEROME YLA-KATRINA
A20: KAUR NAVDEEP
A21: MANSA AMMIEL
A22: MITCHELL JENNIFER
A23: OLLOM CRAIG D
A24: SYKES CHRIS
A25: SZARKOWICZ EWELINA
A26: TERRY MICHAEL
A27: THONGTARA HANAPHAN

Sheet Text Functions (an) (hidden)
B2: removes all spaces except 1 between each word | C2: Cap for each 1st letter | D2: finds the position of "sub-text" with in text. Example =SEARCH("e","len") = 2 -- because e is 2nd letter | E2: takes a certain # of characters form the left | F2: Replaces text when you tell it position to start at and how far to go.
A3: Names | B3: TRIM | C3: PROPER | D3: SEARCH | E3: LEFT | F3: REPLACE
A4: ELAIN JANIS | B4: =TRIM(A4) -> ELAIN JANIS | C4: =PROPER(B4) -> Elain Janis | D4: =SEARCH(" ",C4) -> 6 | E4: =LEFT(C4,D4-1) -> Elain | F4: =PROPER(TRIM(REPLACE(A4,1,SEARCH(" ",A4),""))) -> Janis
A5: GRAF CAROL | B5: =TRIM(A5) -> GRAF CAROL | C5: =PROPER(B5) -> Graf Carol | D5: =SEARCH(" ",C5) -> 5 | E5: =LEFT(C5,D5-1) -> Graf | F5: Carol
A6: LINDSEY GIANNA | B6: LINDSEY GIANNA | C6: Lindsey Gianna | D6: 8 | E6: Lindsey | F6: Gianna
A7: MIKLOVICH JASON | B7: MIKLOVICH JASON | C7: Miklovich Jason | D7: 10 | E7: Miklovich | F7: Jason
A8: MILLER MICHELLE | B8: MILLER MICHELLE | C8: Miller Michelle | D8: 7 | E8: Miller | F8: Michelle
A9: SHOMIN SHARI | B9: SHOMIN SHARI | C9: Shomin Shari | D9: 7 | E9: Shomin | F9: Shari
A10: SNYDER DENISE | B10: SNYDER DENISE | C10: Snyder Denise | D10: 7 | E10: Snyder | F10: Snyder Denise
A11: BELL DANIEL | B11: BELL DANIEL | C11: Bell Daniel | D11: 5 | E11: Bell | F11: Daniel
A12: BURCKHARD SARAH | B12: BURCKHARD SARAH | C12: Burckhard Sarah | D12: 10 | E12: Burckhard | F12: Sarah
A13: CARLSON CHRISTINA | B13: CARLSON CHRISTINA | C13: Carlson Christina | D13: 8 | E13: Carlson | F13: Christina
A14: DIXON JANITA | B14: DIXON JANITA | C14: Dixon Janita | D14: 6 | E14: Dixon | F14: Dixon Janita
A15: EADS DEBRA | B15: EADS DEBRA | C15: Eads Debra | D15: 5 | E15: Eads | F15: Eads Debra
A16: GAYLON NELIA | B16: GAYLON NELIA | C16: Gaylon Nelia | D16: 7 | E16: Gaylon | F16: Nelia
A17: GILL MANAVBIR | B17: GILL MANAVBIR | C17: Gill Manavbir | D17: 5 | E17: Gill | F17: Manavbir
A18: HERR RICHARD | B18: HERR RICHARD | C18: Herr Richard | D18: 5 | E18: Herr | F18: Herr Richard
A19: JEROME YLA-KATRINA | B19: JEROME YLA-KATRINA | C19: Jerome Yla-Katrina | D19: 7 | E19: Jerome | F19: Yla-Katrina
A20: KAUR NAVDEEP | B20: KAUR NAVDEEP | C20: Kaur Navdeep | D20: 5 | E20: Kaur | F20: Navdeep
A21: MANSA AMMIEL | B21: MANSA AMMIEL | C21: Mansa Ammiel | D21: 6 | E21: Mansa | F21: Ammiel
A22: MITCHELL JENNIFER | B22: MITCHELL JENNIFER | C22: Mitchell Jennifer | D22: 9 | E22: Mitchell | F22: Jennifer
A23: OLLOM CRAIG D | B23: OLLOM CRAIG D | C23: Ollom Craig D | D23: 6 | E23: Ollom | F23: Craig D
A24: SYKES CHRIS | B24: SYKES CHRIS | C24: Sykes Chris | D24: 6 | E24: Sykes | F24: Chris
A25: SZARKOWICZ EWELINA | B25: SZARKOWICZ EWELINA | C25: Szarkowicz Ewelina | D25: 11 | E25: Szarkowicz | F25: Ewelina
A26: TERRY MICHAEL | B26: TERRY MICHAEL | C26: Terry Michael | D26: 6 | E26: Terry | F26: Michael
A27: THONGTARA HANAPHAN | B27: THONGTARA HANAPHAN | C27: Thongtara Hanaphan | D27: 10 | E27: Thongtara | F27: Hanaphan

Sheet Fun
A1: Product ID | B1: Sales | C1: Where is this stroed? | H1: Prefix | I1: Room
A2: GRI-6928-810 | B2: 876 | H2: RAD | I2: Front Storage
A3: COO-2223-495 | B3: 1060 | H3: COO | I3: Back Lot
A4: GRI-6793-103 | B4: 823 | H4: BEE | I4: Store
A5: BEE-8735-517 | B5: 380 | H5: GRI | I5: Basement
A6: COO-8361-668 | B6: 320
A7: RAD-5885-953 | B7: 690
A8: GRI-1534-283 | B8: 953
A9: RAD-5020-306 | B9: 879
A10: BEE-2593-392 | B10: 894
A11: COO-7089-755 | B11: 670
A12: BEE-2991-247 | B12: 679
A13: RAD-6297-147 | B13: 747
A14: RAD-2881-515 | B14: 598
A15: GRI-6532-660 | B15: 991
A16: COO-2992-205 | B16: 916
A17: BEE-6094-196 | B17: 698
A18: COO-3048-808 | B18: 268
A19: BEE-8740-307 | B19: 1087
A20: BEE-6826-784 | B20: 1034
A21: GRI-2308-876 | B21: 1169
A22: GRI-1131-267 | B22: 720
A23: RAD-4940-226 | B23: 798
A24: RAD-6397-478 | B24: 304
A25: BEE-4616-346 | B25: 1153
A26: RAD-3460-236 | B26: 1092
A27: BEE-7348-321 | B27: 441
A28: BEE-5470-858 | B28: 736
A29: GRI-8071-237 | B29: 768
A30: COO-5098-393 | B30: 841
A31: RAD-4035-400 | B31: 380
A32: COO-6688-531 | B32: 826
A33: BEE-9205-668 | B33: 246
A34: COO-1052-326 | B34: 758
A35: COO-9221-984 | B35: 1033
A36: GRI-9107-444 | B36: 203
A37: RAD-6427-855 | B37: 295
A38: RAD-1503-728 | B38: 929
A39: BEE-9210-135 | B39: 551
A40: RAD-7053-928 | B40: 1063
A41: RAD-2487-304 | B41: 783
A42: GRI-8476-454 | B42: 734
A43: BEE-3717-318 | B43: 1088
A44: COO-5841-955 | B44: 201
A45: RAD-2400-710 | B45: 790
A46: BEE-6928-105 | B46: 801
A47: RAD-5292-347 | B47: 592
A48: BEE-7862-136 | B48: 403
A49: RAD-9372-569 | B49: 681
A50: COO-7441-331 | B50: 702
A51: COO-8915-170 | B51: 466
A52: GRI-5049-152 | B52: 303
A53: GRI-5950-467 | B53: 793

Sheet Fun (an) (hidden)
A1: Product ID | B1: Sales | C1: Where is this stroed? | H1: Prefix | I1: Room
A2: GRI-6928-810 | B2: 876 | C2: =VLOOKUP(LEFT(A2,3),$H$2:$I$5,2,0) -> Basement | H2: RAD | I2: Front Storage
A3: COO-2223-495 | B3: 1060 | C3: =VLOOKUP(LEFT(A3,3),$H$2:$I$5,2,0) -> Back Lot | H3: COO | I3: Back Lot
A4: GRI-6793-103 | B4: 823 | C4: Basement | H4: BEE | I4: Store
A5: BEE-8735-517 | B5: 380 | C5: Store | H5: GRI | I5: Basement
A6: COO-8361-668 | B6: 320 | C6: Back Lot
A7: RAD-5885-953 | B7: 690 | C7: Front Storage
A8: GRI-1534-283 | B8: 953 | C8: Basement
A9: RAD-5020-306 | B9: 879 | C9: Front Storage
A10: BEE-2593-392 | B10: 894 | C10: Store
A11: COO-7089-755 | B11: 670 | C11: Back Lot
A12: BEE-2991-247 | B12: 679 | C12: Store
A13: RAD-6297-147 | B13: 747 | C13: Front Storage
A14: RAD-2881-515 | B14: 598 | C14: Front Storage
A15: GRI-6532-660 | B15: 991 | C15: Basement
A16: COO-2992-205 | B16: 916 | C16: Back Lot
A17: BEE-6094-196 | B17: 698 | C17: Store
A18: COO-3048-808 | B18: 268 | C18: Back Lot
A19: BEE-8740-307 | B19: 1087 | C19: Store
A20: BEE-6826-784 | B20: 1034 | C20: Store
A21: GRI-2308-876 | B21: 1169 | C21: Basement
A22: GRI-1131-267 | B22: 720 | C22: Basement
A23: RAD-4940-226 | B23: 798 | C23: Front Storage
A24: RAD-6397-478 | B24: 304 | C24: Front Storage
A25: BEE-4616-346 | B25: 1153 | C25: Store
A26: RAD-3460-236 | B26: 1092 | C26: Front Storage
A27: BEE-7348-321 | B27: 441 | C27: Store
A28: BEE-5470-858 | B28: 736 | C28: Store
A29: GRI-8071-237 | B29: 768 | C29: Basement
A30: COO-5098-393 | B30: 841 | C30: Back Lot
A31: RAD-4035-400 | B31: 380 | C31: Front Storage
A32: COO-6688-531 | B32: 826 | C32: Back Lot
A33: BEE-9205-668 | B33: 246 | C33: Store
A34: COO-1052-326 | B34: 758 | C34: Back Lot
A35: COO-9221-984 | B35: 1033 | C35: Back Lot
A36: GRI-9107-444 | B36: 203 | C36: Basement
A37: RAD-6427-855 | B37: 295 | C37: Front Storage
A38: RAD-1503-728 | B38: 929 | C38: Front Storage
A39: BEE-9210-135 | B39: 551 | C39: Store
A40: RAD-7053-928 | B40: 1063 | C40: Front Storage
A41: RAD-2487-304 | B41: 783 | C41: Front Storage
A42: GRI-8476-454 | B42: 734 | C42: Basement
A43: BEE-3717-318 | B43: 1088 | C43: Store
A44: COO-5841-955 | B44: 201 | C44: Back Lot
A45: RAD-2400-710 | B45: 790 | C45: Front Storage
A46: BEE-6928-105 | B46: 801 | C46: Store
A47: RAD-5292-347 | B47: 592 | C47: Front Storage
A48: BEE-7862-136 | B48: 403 | C48: Store
A49: RAD-9372-569 | B49: 681 | C49: Front Storage
A50: COO-7441-331 | B50: 702 | C50: Back Lot
A51: COO-8915-170 | B51: 466 | C51: Back Lot
A52: GRI-5049-152 | B52: 303 | C52: Basement
A53: GRI-5950-467 | B53: 793 | C53: Basement
